bitfinex-derivatives/quotes_ETHF0:USTF0_20210109
["timestamp","ask_amount","ask_price","bid_price","bid_amount"]
[1610224082861,2.3584,1249.8,1249.3,1.22517944]
[1610224083062,2.3584,1249.8,1249.2,54.5723]
[1610224084365,2.3584,1249.8,1249.2,84.5723]
[1610224085166,4.00959,1250.0,1249.2,84.5723]
[1610224085367,4.00959,1250.0,1249.2,54.5723]
[1610224085766,4.00959,1250.0,1249.3,4.00959]
[1610224086267,4.00959,1250.0,1249.2,54.5723]
[1610224087870,4.00959,1249.5,1249.2,54.5723]
[1610224088071,6.61119,1249.5,1249.2,54.5723]
[1610224091174,6.61119,1249.5,1248.8,3.405]
[1610224091773,4.00959,1249.0,1248.8,3.405]
[1610224091976,5.82409,1249.0,1248.8,3.405]
[1610224093976,1.8145,1249.0,1248.9,30.0]
[1610224095580,1.8145,1249.0,1248.9,31.22549742]
[1610224095779,1.8145,1249.0,1248.9,35.23508742]
[1610224097082,2.6016,1249.5,1248.9,35.23508742]
[1610224097283,1.68,1250.1,1248.9,35.23508742]
[1610224097485,18.3464,1251.2,1248.9,35.23508742]
[1610224097886,18.3464,1251.2,1250.4,4.00959]
[1610224098486,18.3464,1251.2,1250.5,30.0]
[1610224099485,18.3464,1251.2,1250.4,4.00959]
[1610224099887,4.00959,1250.9,1250.4,4.00959]
[1610224100090,6.30359,1250.9,1250.4,34.00959]
[1610224103790,6.30359,1250.9,1250.8,4.00959]
[1610224103991,6.30359,1250.9,1250.8,30.0]
[1610224104790,2.294,1250.9,1250.8,30.0]
[1610224105191,18.3464,1251.2,1250.8,30.0]
[1610224105891,18.3464,1251.2,1251.1,4.00959]
[1610224106091,18.3464,1251.2,1251.1,34.00959]
[1610224107092,18.3464,1251.2,1251.1,30.0]
[1610224107895,18.3464,1251.2,1251.1,34.00959]
[1610224110998,16.0,1251.2,1251.1,34.00959]
[1610224111200,16.0,1251.2,1251.1,35.23300338]
[1610224112601,16.0,1251.2,1251.1,37.66380338]
[1610224118013,16.0,1251.2,1251.1,35.23300338]
[1610224119616,16.0,1251.2,1251.1,35.45390653]
[1610224119815,16.0,1251.2,1251.1,37.11890653]
[1610224121116,16.0,1251.2,1251.1,36.89800338]
[1610224121517,16.0,1251.2,1251.1,37.33916481]
[1610224122718,16.0,1251.2,1251.1,37.55945655]
[1610224123521,16.0,1251.2,1251.1,36.89800338]
[1610224123719,16.0,1251.2,1251.1,37.77908499]
[1610224124120,16.0,1251.2,1251.1,37.99911932]
[1610224124521,16.0,1251.2,1251.1,36.89800338]
[1610224124923,16.0,1251.2,1251.1,38.21772187]
[1610224125323,16.0,1251.2,1251.1,36.89800338]
[1610224125523,16.0,1251.2,1251.1,38.65496502]
[1610224126126,2.3489,1251.2,1251.1,36.89800338]
[1610224126725,1.9216,1253.2,1251.9,58.3296]
[1610224126925,1.9216,1253.2,1252.0,30.0]
[1610224127327,1.9216,1253.2,1252.1,0.21946807]
[1610224127625,1.9216,1253.2,1252.2,0.21935203]
[1610224127825,1.9216,1253.2,1252.2,1.84075203]
[1610224128028,1.9216,1253.2,1253.1,4.00959]
[1610224128226,1.9216,1253.2,1253.1,34.00959]
[1610224129227,1.9216,1253.2,1253.1,99.59129]
[1610224130730,1.7315,1253.5,1253.1,99.59129]
[1610224130930,1.7315,1253.5,1253.1,100.81248634]
[1610224131132,4.00959,1254.8,1253.1,100.81248634]
[1610224131530,85.128088,1255.5,1253.1,37.76028634]
[1610224131730,84.84242828,1255.7,1253.8,58.6799]
[1610224131930,18.5785269,1255.9,1255.4,4.00959]
[1610224131931,84.30089888,1255.9,1255.4,4.00959]
[1610224132130,84.30089888,1255.9,1254.9,48.1783]
[1610224132331,86.79849888,1255.9,1255.0,30.0]
[1610224132731,2.4976,1255.9,1255.0,30.0]
[1610224133231,2.4976,1255.9,1254.9,48.1783]
[1610224134031,2.4976,1255.9,1255.3,4.00959]
[1610224134432,2.4976,1255.9,1255.3,34.00959]
[1610224135032,2.4976,1255.9,1255.3,30.0]
[1610224135433,2.4976,1255.9,1255.0,30.0]
[1610224136031,2.4976,1255.9,1255.6,4.00959]
[1610224137132,2.4976,1255.9,1254.9,48.1783]
[1610224137332,1.9003,1255.9,1254.9,48.1783]
[1610224137533,1.9003,1255.9,1254.0,65.6714]
[1610224137735,1.9003,1255.9,1254.1,30.0]
[1610224137935,4.00959,1255.1,1254.1,30.0]
[1610224138133,1.7263,1255.1,1254.1,30.0]
[1610224139433,1.7263,1255.1,1254.7,61.666]
[1610224139633,1.7263,1255.1,1254.8,30.0]
[1610224140034,1.7263,1255.1,1255.0,4.00959]
[1610224140234,1.9003,1255.9,1255.0,34.00959]
[1610224141338,1.9003,1255.9,1255.7,60.47]
[1610224141539,1.9003,1255.9,1255.8,30.0]
[1610224141937,1.9003,1255.9,1255.8,34.00959]
[1610224142138,4.00959,1257.0,1255.8,34.00959]
[1610224142538,4.00959,1257.0,1255.8,4.00959]
[1610224142741,4.00959,1257.0,1255.2,52.4554]
[1610224142938,3.00601176,1256.8,1255.2,52.4554]
[1610224143739,3.00601176,1256.8,1255.3,30.0]
[1610224143943,21.0,1255.9,1255.3,30.0]
[1610224144140,26.79529,1255.9,1255.3,30.0]
[1610224144740,22.7857,1255.9,1255.3,30.0]
[1610224144941,22.7857,1255.9,1255.2,52.4554]
[1610224145542,22.7857,1255.9,1255.2,82.4554]
[1610224146142,22.7857,1255.9,1255.8,4.00959]
[1610224146343,22.7857,1255.9,1255.8,34.00959]
[1610224147342,22.7857,1255.9,1255.8,4.00959]
[1610224148543,22.7857,1255.9,1255.8,34.00959]
[1610224148943,21.0,1255.9,1255.8,34.00959]
[1610224149745,21.0,1255.9,1255.8,4.00959]
[1610224150544,21.0,1255.9,1255.8,34.00959]
[1610224150946,21.0,1255.9,1255.8,35.97629]
[1610224151745,21.0,1255.9,1255.8,55.35349]
[1610224151944,21.0,1255.9,1255.8,85.35349]
[1610224152746,21.0,1255.9,1255.8,86.5723385]
[1610224155447,21.0,1255.9,1255.8,37.1951385]
[1610224157250,21.0,1255.9,1255.8,35.2284385]
[1610224159453,21.0,1255.9,1255.8,5.2284385]
[1610224159854,21.0,1255.9,1255.8,35.2284385]
[1610224171367,21.0,1255.9,1255.8,35.44197084]
[1610224171667,21.0,1255.9,1255.8,35.2284385]
[1610224174670,21.0,1255.9,1255.8,5.2284385]
[1610224174869,21.0,1255.9,1255.8,35.2284385]
[1610224175771,21.0,1255.9,1255.8,5.2284385]
[1610224176174,21.0,1255.9,1255.8,35.2284385]
[1610224176373,21.0,1255.9,1255.8,31.2188485]
[1610224177176,21.0,1255.9,1255.8,1.2188485]
[1610224177977,21.0,1255.9,1255.5,1.21913994]
[1610224178178,4.00959,1255.6,1255.5,1.21913994]
[1610224178377,6.17199,1255.6,1255.5,1.21913994]
[1610224179379,6.17199,1255.6,1254.5,1.22018809]
[1610224180378,4.00959,1254.6,1254.5,1.22018809]
[1610224180580,5.83129,1254.6,1254.5,1.22018809]
[1610224180779,5.83129,1254.6,1253.1,3.405]
[1610224182284,4.00959,1253.2,1253.1,3.405]
[1610224182684,4.00959,1253.2,1252.1,4.00959]
[1610224183488,4.00959,1253.2,1252.2,1.22182062]
[1610224184290,4.00959,1252.3,1252.2,1.22182062]
[1610224184489,5.66189,1252.3,1252.2,1.22182062]
[1610224184688,1.6523,1252.3,1252.2,1.22182062]
[1610224185287,1.6523,1252.3,1252.1,30.0]
[1610224185487,2.3833,1253.7,1252.1,30.0]
[1610224185688,2.3833,1253.7,1252.1,35.947]
[1610224186287,4.00959,1253.6,1253.5,4.00959]
[1610224186687,4.00959,1253.6,1252.1,36.16570513]
[1610224186888,4.00959,1253.6,1252.4,0.21841808]
[1610224187088,4.00959,1253.6,1252.4,2.224]
[1610224187287,4.00959,1253.6,1252.5,30.0]
[1610224188087,2.5805,1254.0,1252.5,30.0]
[1610224188290,2.5805,1254.0,1253.4,4.00959]
[1610224188489,2.5805,1254.0,1253.5,30.0]
[1610224188687,1.8217,1254.6,1253.5,30.0]
[1610224188890,84.35885423,1255.5,1253.5,30.0]
[1610224188891,6.0898,1255.8,1253.5,30.0]
[1610224189090,105.32369806,1255.9,1253.5,33.405]
[1610224189289,21.0,1255.9,1253.5,33.405]
[1610224189491,21.0,1255.9,1253.5,40.216]
[1610224190390,4.00959,1255.5,1254.9,4.00959]
[1610224190590,4.00959,1255.5,1254.9,34.00959]
[1610224192296,4.00959,1255.3,1254.9,34.00959]
[1610224192496,6.14169,1255.3,1254.9,30.0]
[1610224192697,6.14169,1255.3,1254.5,30.0]
[1610224193600,6.14169,1255.3,1253.6,30.0]
[1610224194198,2.1321,1255.3,1253.6,30.0]
[1610224194399,4.00959,1255.5,1254.7,4.00959]
[1610224194599,4.00959,1255.5,1254.8,30.0]
[1610224194799,21.0,1255.9,1254.8,30.0]
[1610224196300,21.0,1255.9,1255.7,4.00959]
[1610224196500,21.0,1255.9,1255.7,32.2359]
[1610224196701,21.0,1255.9,1255.7,2.2359]
[1610224198404,21.0,1255.9,1255.7,6.24549]
[1610224199103,21.0,1255.9,1255.8,30.0]
[1610224200029,21.0,1255.9,1255.7,6.24549]
[1610224200405,21.0,1255.9,1255.8,30.0]
[1610224201708,21.0,1255.9,1255.7,6.24549]
[1610224201911,21.0,1255.9,1255.8,30.0]
[1610224203313,21.0,1255.9,1255.7,6.24549]
[1610224203510,21.0,1255.9,1255.7,2.2359]
[1610224203713,21.0,1255.9,1254.7,5.5469]
[1610224204412,21.0,1255.9,1254.8,34.00959]
[1610224204912,21.0,1255.9,1254.8,30.0]
[1610224205715,21.0,1255.9,1254.9,1.21961088]
[1610224206416,4.00959,1255.2,1254.9,1.21961088]
[1610224206616,21.0,1255.9,1254.9,1.21961088]
[1610224208518,4.00959,1255.0,1254.9,1.21961088]
[1610224208720,21.0,1255.9,1254.9,1.21961088]
[1610224209920,21.0,1255.9,1254.7,2.1419]
[1610224210120,0.1791,1255.9,1253.8,58.2182]
[1610224210322,27.35897807,1256.3,1253.8,58.2182]
[1610224210522,27.35897807,1256.3,1253.8,60.6124]
[1610224210723,64.4584,1256.0,1253.8,2.3942]
[1610224211223,64.4584,1256.0,1253.9,1.22048895]
[1610224212625,14.65749709,1256.2,1253.9,1.22048895]
[1610224213224,14.65671804,1256.3,1253.9,1.22048895]
[1610224213424,14.65671804,1256.3,1253.9,31.22048895]
[1610224213627,14.65527089,1256.5,1253.9,31.22048895]
[1610224214025,14.65414683,1256.6,1254.0,1.22020307]
[1610224214225,14.65380345,1256.7,1254.0,1.22020307]
[1610224214426,4.00959,1255.0,1254.5,4.00959]
[1610224214625,4.00959,1255.0,1254.0,1.22020307]
[1610224215625,4.00959,1255.0,1253.9,1.220657]
[1610224216526,4.00959,1255.7,1254.5,4.00959]
[1610224216727,4.00959,1255.7,1254.5,5.84119]
[1610224216927,4.00959,1255.7,1254.5,35.84119]
[1610224218231,8.3936,1256.6,1254.6,1.22002547]
[1610224218428,4.00959,1255.9,1255.7,4.00959]
[1610224218629,4.00959,1255.9,1254.6,1.22002547]
[1610224220430,4.00959,1255.5,1255.2,4.00959]
[1610224222436,4.00959,1255.5,1254.5,1.8316]
[1610224222835,8.3936,1256.6,1254.0,30.0]
[1610224223034,6.2967,1256.6,1254.0,30.0]
[1610224223334,6.2967,1256.6,1254.0,30.21793074]
[1610224223534,6.2967,1256.6,1254.6,1.21954219]
[1610224223734,0.39981176,1256.8,1254.6,3.36534219]
[1610224223935,0.39981176,1256.8,1254.7,92.3725]
[1610224224434,4.00959,1256.1,1255.7,4.00959]
[1610224225235,0.39981176,1256.8,1255.7,4.00959]
[1610224225434,0.39981176,1256.8,1255.7,36.32629]
[1610224225837,0.39981176,1256.8,1255.8,59.2584]
[1610224226035,0.39981176,1256.8,1255.9,30.0]
[1610224226436,0.39981176,1256.8,1256.7,4.00959]
[1610224226636,0.39981176,1256.8,1256.7,35.87929]
[1610224227834,14.63371523,1258.5,1256.7,35.87929]
[1610224228435,4.00959,1258.3,1258.2,4.00959]
[1610224228636,14.63019555,1258.9,1258.3,25.99041]
[1610224228838,14.63019555,1258.9,1258.3,28.22461]
[1610224229438,14.63701181,1259.0,1258.3,28.22461]
[1610224230040,16.97906373,1259.3,1258.3,28.22461]
[1610224230041,14.62830453,1259.1,1258.3,28.22461]
[1610224230240,14.62830453,1259.1,1258.3,2.2342]
[1610224230441,4.00959,1258.9,1258.6,4.00959]
[1610224230640,14.62851922,1259.1,1258.3,2.2342]
[1610224231340,14.62912137,1259.0,1258.3,2.2342]
[1610224232240,14.63035779,1258.9,1258.3,2.2342]
[1610224232540,4.00959,1258.4,1258.3,2.2342]
[1610224233041,14.63035779,1258.9,1258.3,2.2342]
[1610224233243,14.63011017,1259.0,1258.3,32.2342]
[1610224234046,14.62912704,1259.1,1258.3,32.2342]
[1610224234346,14.62912704,1259.1,1258.3,2.2342]
[1610224234547,4.00959,1258.4,1258.3,1.7973]
[1610224234748,14.62912704,1259.1,1258.3,1.7973]
[1610224234949,14.62780686,1259.0,1258.3,1.7973]
[1610224235950,14.62951872,1258.9,1258.3,1.7973]
[1610224236351,14.62868603,1259.0,1258.3,1.7973]
[1610224236552,4.00959,1258.4,1258.3,1.7973]
[1610224239754,14.62968688,1258.9,1257.3,91.0386]
[1610224239954,14.62968688,1258.9,1257.3,93.4736]
[1610224240157,14.62876923,1259.0,1257.3,93.4736]
[1610224240754,14.62671292,1259.1,1257.3,93.4736]
[1610224241054,15.02538636,1259.3,1257.3,93.4736]
[1610224241855,0.39981176,1259.3,1257.3,93.4736]
[1610224242557,0.39981176,1259.3,1259.0,4.00959]
[1610224242757,0.39981176,1259.3,1258.9,2.4414]
[1610224244562,4.00959,1259.0,1258.9,2.4414]
[1610224245164,4.00959,1259.0,1257.3,2.435]
[1610224245361,4.00959,1259.0,1256.8,30.0]
[1610224245761,4.00959,1259.0,1256.7,1.8697]
[1610224245963,4.00959,1259.0,1256.5,47.4116]
[1610224246563,4.00959,1257.9,1257.8,4.00959]
[1610224246762,14.62635215,1259.2,1257.8,4.00959]
[1610224246962,14.62607061,1259.1,1257.8,5.67939]
[1610224247164,16.54027061,1259.1,1257.8,5.67939]
[1610224247363,1.9142,1259.1,1257.8,5.67939]
[1610224248266,29.21647826,1259.1,1257.8,5.67939]
[1610224248563,4.00959,1258.2,1257.8,5.67939]
[1610224248763,4.00959,1258.2,1257.8,1.6698]
[1610224250164,29.21647826,1259.1,1257.8,1.6698]
[1610224250367,1.9142,1259.1,1257.8,1.6698]
[1610224250667,4.00959,1258.8,1258.4,4.00959]
[1610224250868,4.00959,1258.8,1257.8,1.6698]
[1610224251969,4.00959,1258.8,1256.8,50.2624]
[1610224252169,6.58019,1258.8,1256.8,50.2624]
[1610224252669,4.00959,1257.7,1257.4,4.00959]
[1610224252871,2.5706,1258.8,1257.4,4.00959]
[1610224253071,2.5706,1258.8,1257.4,5.89039]
[1610224254071,14.0,1259.0,1257.4,5.89039]
[1610224254671,4.00959,1258.6,1257.4,1.8808]
[1610224255271,4.00959,1258.6,1257.5,64.7968]
[1610224255471,4.00959,1258.6,1257.6,30.0]
[1610224256471,4.00959,1258.6,1257.5,64.7968]
[1610224256673,4.00959,1258.6,1258.5,4.00959]
[1610224257271,4.00959,1258.6,1258.2,2.4923]
[1610224258671,4.00959,1258.3,1258.2,2.4923]
[1610224260072,14.0,1259.0,1258.2,2.4923]
[1610224260671,4.00959,1258.4,1258.3,4.00959]
[1610224261673,4.00959,1258.4,1258.2,2.4923]
[1610224261872,4.00959,1258.4,1257.7,56.1707]
[1610224262774,4.00959,1258.0,1257.4,5.89039]
[1610224262973,4.00959,1258.0,1257.4,1.8808]
[1610224263173,4.00959,1258.0,1257.2,3.405]
[1610224263373,1.6939,1258.0,1257.2,3.405]
[1610224263574,1.6939,1258.0,1256.4,61.0236]
[1610224263779,1.6939,1258.0,1256.4,6.811]
[1610224263980,1.6939,1258.0,1256.1,3.405]
[1610224264580,29.01482168,1258.0,1256.1,3.405]
[1610224264779,3.5253895,1257.9,1256.2,5.22794687]
[1610224264979,27.32398681,1257.8,1256.2,5.22794687]
[1610224265181,27.32398681,1257.8,1256.2,1.21835687]
[1610224265581,27.32799667,1257.7,1256.2,1.21835687]
[1610224265781,29.51039667,1257.7,1256.2,1.21835687]
[1610224266584,29.51039667,1257.7,1255.7,32.3167]
[1610224266782,4.00959,1256.9,1256.1,4.00959]
[1610224266981,2.4042,1257.2,1256.1,4.00959]
[1610224267182,2.4042,1257.2,1256.1,5.60409]
[1610224268184,2.1824,1257.7,1256.1,5.60409]
[1610224268783,4.00959,1256.6,1256.3,4.00959]
[1610224268983,1.9228,1257.4,1256.3,4.00959]
[1610224270186,1.6939,1258.0,1256.3,4.00959]
[1610224270586,6.3574,1258.1,1256.3,4.00959]
[1610224270787,4.00959,1257.5,1257.2,4.00959]
[1610224272689,4.00959,1257.3,1257.2,4.00959]
[1610224273088,4.00959,1257.3,1256.1,59.8436]
[1610224274391,2.6137,1258.0,1256.1,89.8436]
[1610224274791,4.00959,1257.9,1256.1,89.8436]
[1610224274991,4.00959,1257.9,1256.2,1.2183088]
[1610224276692,4.00959,1257.9,1257.8,4.00959]
[1610224276892,4.00959,1257.9,1257.8,6.52399]
[1610224277493,14.0,1259.0,1257.8,6.52399]
[1610224278093,14.0,1259.0,1257.8,36.52399]
[1610224278694,4.00959,1258.9,1258.6,4.00959]
[1610224279594,14.0,1259.0,1258.6,4.00959]
[1610224279798,14.0,1259.0,1258.6,5.68749]
[1610224280400,14.0,1259.0,1258.6,1.6779]
[1610224280794,4.00959,1258.7,1258.6,1.6779]
[1610224281895,14.0,1259.0,1258.6,1.6779]
[1610224282798,18.00959,1259.0,1258.8,4.00959]
[1610224283196,14.0,1259.0,1258.8,4.00959]
[1610224287002,14.0,1259.0,1258.8,34.00959]
[1610224288105,14.0,1259.0,1258.8,4.00959]
[1610224289205,14.0,1259.0,1258.6,1.6779]
[1610224289606,14.0,1259.0,1258.2,30.0]
[1610224290707,14.0,1259.0,1258.9,4.00959]
[1610224290905,14.0,1259.0,1258.9,6.11629]
[1610224293312,14.0,1259.0,1258.9,36.11629]
[1610224294612,14.0,1259.0,1258.9,6.11629]
[1610224295713,14.0,1259.0,1258.9,36.11629]
[1610224296713,14.0,1259.0,1258.9,6.11629]
[1610224301017,14.0,1259.0,1258.9,36.11629]
[1610224304822,14.0,1259.0,1258.9,37.33230827]
[1610224307822,4.2324,1259.0,1258.9,37.33230827]
[1610224311530,5.8015,1259.0,1258.9,37.33230827]
[1610224311732,4.2324,1259.0,1258.9,37.33230827]
[1610224313233,4.2324,1259.0,1258.9,36.11629]
[1610224313433,5.8366,1259.0,1258.9,36.11629]
[1610224313635,4.2324,1259.0,1258.9,36.11629]
[1610224314634,5.8224,1259.0,1258.9,36.11629]
[1610224315136,4.2324,1259.0,1258.9,36.11629]
[1610224315938,4.2324,1259.0,1258.9,37.33220887]
[1610224316138,5.8412,1259.0,1258.9,37.33220887]
[1610224316740,4.2324,1259.0,1258.9,37.33220887]
[1610224317941,5.814,1259.0,1258.9,37.33220887]
[1610224318343,4.2324,1259.0,1258.9,37.33220887]
[1610224319542,5.8053,1259.0,1258.9,37.33220887]
[1610224321444,4.2324,1259.0,1258.9,37.33220887]
[1610224322445,5.8253,1259.0,1258.9,37.33220887]
[1610224322945,4.2324,1259.0,1258.9,37.33220887]
[1610224323945,5.8263,1259.0,1258.9,37.33220887]
[1610224324145,4.2324,1259.0,1258.9,37.33220887]
[1610224324346,4.2324,1259.0,1258.9,7.33220887]
[1610224325146,5.8434,1259.0,1258.9,3.32261887]
[1610224325546,4.2324,1259.0,1258.9,3.32261887]
[1610224326548,5.8278,1259.0,1258.9,3.32261887]
[1610224326946,5.8278,1259.0,1258.9,7.33220887]
[1610224327148,5.8278,1259.0,1258.9,6.11629]
[1610224327649,4.2324,1259.0,1258.9,6.11629]
[1610224328352,4.2324,1259.0,1258.9,7.3323782]
[1610224328651,5.8366,1259.0,1258.9,7.3323782]
[1610224329251,4.2324,1259.0,1258.9,7.3323782]
[1610224330254,5.7978,1259.0,1258.9,7.3323782]
[1610224330954,4.2324,1259.0,1258.9,7.3323782]
[1610224331154,4.2324,1259.0,1258.9,37.3323782]
[1610224331854,4.2324,1259.0,1258.9,33.3227882]
[1610224332055,5.7972,1259.0,1258.9,3.3227882]
[1610224332554,4.2324,1259.0,1258.9,3.3227882]
[1610224332955,8.24199,1259.0,1258.9,3.3227882]
[1610224333558,9.84409,1259.0,1258.9,3.3227882]
[1610224334258,8.24199,1259.0,1258.9,3.3227882]
[1610224335259,9.81009,1259.0,1258.9,3.3227882]
[1610224337364,8.24199,1259.0,1258.9,3.3227882]
[1610224339569,9.83589,1259.0,1258.9,3.3227882]
[1610224339769,8.24199,1259.0,1258.9,3.3227882]
[1610224340968,9.85189,1259.0,1258.9,3.3227882]
[1610224341168,9.85189,1259.0,1258.9,2.1067]
[1610224341368,8.24199,1259.0,1257.8,6.52399]
[1610224341567,8.24199,1259.0,1258.9,2.2758]
[1610224342373,9.81219,1259.0,1258.9,2.2758]
[1610224343272,8.24199,1259.0,1258.9,2.2758]
[1610224345471,8.24199,1259.0,1258.9,3.49220479]
[1610224345673,9.82359,1259.0,1258.9,3.49220479]
[1610224346373,8.24199,1259.0,1258.9,3.49220479]
[1610224346874,8.24199,1259.0,1258.9,2.2758]
[1610224347074,8.24199,1259.0,1258.2,54.26069]
[1610224347274,8.24199,1259.0,1258.9,2.327]
[1610224349677,9.80999,1259.0,1258.9,2.327]
[1610224349877,5.8004,1259.0,1258.9,3.54334357]
[1610224350677,4.2324,1259.0,1258.9,3.54334357]
[1610224351077,8.24199,1259.0,1258.9,3.54334357]
[1610224351677,9.85209,1259.0,1258.9,3.54334357]
[1610224353077,8.24199,1259.0,1258.9,3.54334357]
[1610224354078,9.85189,1259.0,1258.9,3.54334357]
[1610224356081,8.24199,1259.0,1258.9,3.54334357]
[1610224356881,4.2324,1259.0,1258.9,3.54334357]
[1610224358984,4.2324,1259.0,1258.9,7.55293357]
[1610224361686,4.2324,1259.0,1258.9,37.55293357]
[1610224362286,4.2324,1259.0,1258.9,103.15423357]
[1610224363993,0.39981176,1259.3,1258.9,103.15423357]
[1610224364391,0.39981176,1259.3,1258.9,37.55293357]
[1610224364994,0.39981176,1259.3,1259.2,4.00959]
[1610224365191,0.39981176,1259.3,1259.2,35.61389]
[1610224366591,0.39981176,1259.3,1259.2,36.829492]
[1610224371098,0.39981176,1260.6,1259.8,46.764]
[1610224371296,0.39981176,1260.6,1259.9,30.0]
[1610224372598,0.39981176,1260.6,1260.0,1.21480233]
[1610224372998,0.39981176,1260.6,1260.5,4.00959]
[1610224373200,0.39981176,1260.6,1260.5,45.49909]
[1610224374301,0.39981176,1260.6,1260.5,36.61049]
[1610224378104,0.39981176,1260.6,1260.5,37.82484985]
[1610224380308,1.5765,1262.6,1260.5,37.82484985]
[1610224380811,1.5765,1262.6,1261.7,56.9485]
[1610224381012,1.5765,1262.6,1261.8,30.0]
[1610224381209,1.5765,1262.6,1262.5,4.00959]
[1610224382010,1.5765,1262.6,1261.8,30.0]
[1610224383210,5.58609,1262.6,1261.7,2.4277]
[1610224383810,5.58609,1262.6,1260.6,30.0]
[1610224384210,52.27948896,1262.6,1260.6,30.0]
[1610224384610,46.69442815,1262.5,1260.6,30.0]
[1610224385010,46.69442815,1262.5,1260.5,2.6009]
[1610224385210,4.00959,1260.8,1260.1,30.0]
[1610224385610,2.262,1261.5,1260.1,30.0]
[1610224385811,2.262,1261.5,1260.1,32.5291]
[1610224386814,2.262,1261.5,1260.2,1.21443263]
[1610224387015,5.8961,1262.3,1260.2,1.21443263]
[1610224387215,5.8961,1262.3,1261.7,4.00959]
[1610224387815,6.4064,1262.5,1261.7,4.00959]
[1610224388215,6.4064,1262.5,1261.4,53.909]
[1610224389015,1.5765,1262.6,1261.4,83.909]
[1610224389216,4.00959,1262.1,1261.7,4.00959]
[1610224389415,4.00959,1262.1,1261.4,83.909]
[1610224391117,4.00959,1261.8,1261.6,4.00959]
[1610224391618,4.00959,1261.8,1261.4,53.909]
[1610224391818,4.00959,1261.8,1261.2,2.3868]
[1610224392620,4.00959,1261.8,1261.3,30.0]
[1610224392822,32.37316134,1262.9,1261.3,31.7428]
[1610224393221,4.00959,1262.3,1261.8,4.00959]
[1610224394527,4.00959,1262.3,1261.8,11.68959]
[1610224394726,1.976,1263.0,1261.8,11.68959]
[1610224394927,1.976,1263.0,1261.8,14.12449]
[1610224395128,4.00959,1262.8,1262.2,4.00959]
[1610224395528,4.00959,1262.8,1261.8,10.1149]
[1610224397230,27.22170237,1263.2,1261.9,30.0]
[1610224397432,2.4981,1263.3,1262.1,53.2372]
[1610224397630,2.4981,1263.3,1262.1,55.5908]
[1610224398532,27.21673272,1263.6,1262.1,55.5908]
[1610224399135,4.00959,1262.8,1262.6,4.00959]
[1610224399936,4.00959,1262.8,1262.1,2.3536]
[1610224401238,27.21524435,1263.6,1262.6,4.00959]
[1610224401637,27.21524435,1263.6,1262.4,1.9613]
[1610224402636,27.21524435,1263.6,1262.4,49.5973]
[1610224403038,37.9076527,1263.6,1262.4,49.5973]
[1610224403240,4.00959,1262.6,1262.4,49.5973]
[1610224403439,4.00959,1262.6,1262.4,1.9613]
[1610224406541,4.00959,1262.6,1262.3,4.00959]
[1610224407241,4.00959,1262.4,1262.3,4.00959]
[1610224407641,4.00959,1262.4,1262.1,2.3536]
[1610224407843,4.00959,1262.4,1261.8,49.7868]
[1610224408342,4.00959,1262.4,1261.9,30.0]
[1610224409342,4.00959,1262.0,1261.9,30.0]
[1610224409545,4.00959,1262.0,1261.8,2.4349]
[1610224409744,4.00959,1262.0,1261.3,1.7428]
[1610224409943,4.00959,1262.0,1261.1,30.0]
[1610224411044,4.00959,1262.0,1261.0,30.0]
[1610224411244,1.8854,1262.6,1261.2,1.21437101]
[1610224411844,39.82124609,1262.6,1261.2,1.21437101]
[1610224412046,37.93558722,1262.5,1261.2,1.21437101]
[1610224412447,39.82120152,1262.6,1261.2,1.21437101]
[1610224412646,3.21948169,1262.5,1261.1,2.2973]
[1610224413246,4.00959,1261.3,1261.1,2.2973]
[1610224415246,2.0508,1262.3,1261.2,4.00959]
[1610224415446,3.6325,1262.3,1261.2,4.00959]
[1610224415946,2.0508,1262.3,1261.2,4.00959]
[1610224416147,1.8854,1262.6,1261.2,4.00959]
[1610224416347,6.3735,1262.7,1261.1,58.6403]
[1610224417350,4.00959,1261.4,1261.1,2.2973]
[1610224417550,4.00959,1261.4,1260.6,10.216]
[1610224418150,4.00959,1261.4,1260.7,30.0]
[1610224418352,4.00959,1261.4,1260.7,32.2354]
[1610224418852,4.00959,1261.4,1260.7,33.44992847]
[1610224419252,4.00959,1261.4,1261.3,4.00959]
[1610224419452,4.00959,1261.4,1260.7,3.44992847]
[1610224419654,4.00959,1261.4,1261.3,1.9733]
[1610224421057,4.00959,1261.4,1261.0,1.9399]
[1610224421258,4.00959,1261.1,1260.7,2.2354]
[1610224422262,4.00959,1261.1,1259.6,96.6416]
[1610224422459,4.00959,1261.1,1259.6,30.0]
[1610224423260,56.4969,1261.3,1259.9,4.00959]
[1610224423660,56.4969,1261.3,1259.9,5.63289]
[1610224425361,4.00959,1260.4,1259.9,1.6233]
[1610224427264,4.00959,1260.0,1259.9,1.6233]
[1610224427462,2.3377,1261.1,1259.9,1.6233]
[1610224428766,2.3377,1261.1,1259.9,1.8903]
[1610224429164,21.0,1260.4,1259.9,1.8903]
[1610224429365,4.00959,1260.3,1259.9,1.8903]
[1610224431367,4.00959,1260.0,1259.9,1.8903]
[1610224433971,4.00959,1260.0,1259.0,34.00959]
[1610224434172,4.00959,1260.0,1259.0,4.00959]
[1610224435373,21.0,1260.4,1259.8,4.00959]
[1610224435574,21.0,1260.4,1259.8,6.50999]
[1610224436375,21.0,1260.4,1259.8,2.5004]
[1610224438580,21.0,1260.4,1259.9,1.21516295]